[Event "Chhattisgarh Masters GM 2022"]
[Site "Chhattisgarh"]
[Date "2022.09.19"]
[Round "1.22"]
[White "Nithin Babu"]
[Black "Aaryan Varshney"]
[Result "0-1"]
[ECO "C84"]
[WhiteElo "1990"]
[BlackElo "2263"]
[Annotator "NA"]
[PlyCount "118"]
[EventDate "2022.09.19"]
[EventCountry "IND"]
[SourceTitle "playchess.com"]
[Source "ChessBase"]
[SourceQuality "1"]
[TimeControl "5400+30"]

1. e4 {[%emt 0:01:08]} e5 {[%emt 0:00:07]} 2. Nf3 {[%emt 0:00:05]} Nc6 {[%emt 0:00:08]} 3. Bb5 {[%emt 0:00:06]} a6 {[%emt 0:00:16]} 4. Ba4 {[%emt 0:00:22]} Nf6 {[%emt 0:00:19]} 5. O-O {[%emt 0:00:08]} Be7 {[%emt 0:00:15]} 6. d3 {[%emt 0:00:10]} b5 {[%emt 0:00:22]} 7. Bb3 {[%emt 0:00:06]} d6 {[%emt 0:00:25]} 8. a3 {[%emt 0:00:17]} O-O {[%emt 0:00:51]} 9. Nc3 {[%emt 0:00:07]} Bg4 {[%emt 0:06:04]} 10. Be3 {[%emt 0:00:13]} Nd4 {[%emt 0:01:17]} 11. Bxd4 {[%emt 0:00:37]} exd4 {[%emt 0:00:03]} 12. Nd5 {[%emt 0:00:37]} Nd7 {[%emt 0:10:04]} 13. h3 {[%emt 0:03:22]} Bxf3 {[%emt 0:00:18]} 14. Qxf3 {[%emt 0:00:18]} c6 {[%emt 0:00:15]} 15. Nf4 {[%emt 0:02:49]} Nc5 {[%emt 0:10:05]} 16. Ba2 {[%emt 0:02:12]} Na4 {[%emt 0:00:27]} 17. Ne2 {[%emt 0:14:53]} c5 {[%emt 0:06:44]} 18. Rab1 {[%emt 0:08:22]} Bg5 {[%emt 0:14:01]} 19. Qg4 {[%emt 0:08:28]} Rc8 {[%emt 0:03:09]} 20. Kh1 {[%emt 0:04:07]} Nb6 {[%emt 0:10:11]} 21. f4 {[%emt 0:04:31]} Bf6 {[%emt 0:00:26]} 22. Ng1 {[%emt 0:02:33]} c4 {[%emt 0:03:22]} 23. Nf3 {[%emt 0:04:42]} Re8 {[%emt 0:03:22]} 24. Rbe1 {[%emt 0:03:15]} Qc7 {[%emt 0:03:05]} 25. Re2 {[%emt 0:39:32]} Re7 26. h4 {[%emt 0:00:00]} Rce8 {[%emt 0:09:12]} 27. Ref2 {[%emt 0:00:00]} Qc5 {[%emt 0:09:13]} 28. Qh3 {[%emt 0:00:00]} g6 {[%emt 0:05:31]} 29. g4 {[%emt 0:00:00]} b4 {[%emt 0:01:14]} 30. axb4 {[%emt 0:00:00]} Qxb4 {[%emt 0:00:22]} 31. Nd2 {[%emt 0:00:00]} d5 {[%emt 0:01:00]} 32. e5 {[%emt 0:01:43]} Bg7 {[%emt 0:00:43]} 33. dxc4 {[%emt 0:01:06]} dxc4 {[%emt 0:00:35]} 34. Ne4 {[%emt 0:00:52]} Qa4 {[%emt 0:03:06]} 35. Bb1 {[%emt 0:00:38]} Nd5 {[%emt 0:00:29]} 36. Nd6 {[%emt 0:00:34]} Rb8 {[%emt 0:00:49]} 37. Qf3 {[%emt 0:00:29]} Ne3 {[%emt 0:00:38]} 38. Rg1 {[%emt 0:00:22]} Rxb2 {[%emt 0:00:30]} 39. Qa8+ {[%emt 0:00:27]} Bf8 {[%emt 0:00:01]} 40. f5 {[%emt 0:00:34]} Qb4 {[%emt 0:00:52]} 41. fxg6 {[%emt 0:00:35]} hxg6 {[%emt 0:00:15]} 42. Ne4 {[%emt 0:00:39]} Rxb1 {[%emt 0:00:52]} 43. Nf6+ {[%emt 0:00:30]} Kg7 {[%emt 0:00:05]} 44. Rxb1 {[%emt 0:00:00]} Qxb1+ {[%emt 0:00:00]} 45. Kh2 {[%emt 0:00:00]} Qb5 {[%emt 0:00:00]} 46. h5 {[%emt 0:00:00]} Qxe5+ {[%emt 0:00:00]} 47. Kh3 {[%emt 0:00:00]} Nf5 {[%emt 0:00:00]} 48. gxf5 {[%emt 0:00:00]} Qxf6 {[%emt 0:00:00]} 49. h6+ {[%emt 0:00:00]} Kh7 {[%emt 0:00:00]} 50. Qxf8 {[%emt 0:00:00]} gxf5 {[%emt 0:00:00]} 51. Kg2 {[%emt 0:00:00]} Re4 {[%emt 0:01:03]} 52. Kf1 {[%emt 0:00:00]} d3 {[%emt 0:00:27]} 53. c3 {[%emt 0:00:00]} Qg6 {[%emt 0:01:20]} 54. Rg2 {[%emt 0:00:00]} Rf4+ {[%emt 0:00:25]} 55. Kg1 {[%emt 0:00:07]} d2 {[%emt 0:02:59]} 56. Qd8 {[%emt 0:04:07]} Rg4 {[%emt 0:00:10]} 57. Kf1 {[%emt 0:00:24]} d1=Q+ {[%emt 0:00:22]} 58. Qxd1 {[%emt 0:00:16]} Rxg2 {[%emt 0:00:06]} 59. Qd4 {[%emt 0:00:21]} Rg1+ {[%emt 0:00:32]} 0-1

[Event "Chhattisgarh Masters GM 2022"]
[Site "Chhattisgarh"]
[Date "2022.09.19"]
[Round "1.23"]
[White "Saravana, Krishnan P."]
[Black "Hemanth Raam"]
[Result "1-0"]
[ECO "A08"]
[WhiteElo "2261"]
[BlackElo "1983"]
[Annotator "NA"]
[PlyCount "101"]
[EventDate "2022.09.19"]
[EventCountry "IND"]
[SourceTitle "playchess.com"]
[Source "ChessBase"]
[SourceQuality "1"]
[TimeControl "5400+30"]

1. Nf3 {[%emt 0:00:05]} d5 {[%emt 0:00:59]} 2. g3 {[%emt 0:00:11]} c5 {[%emt 0:00:18]} 3. Bg2 {[%emt 0:00:11]} Nc6 {[%emt 0:00:05]} 4. O-O {[%emt 0:00:41]} e5 {[%emt 0:00:55]} 5. d3 {[%emt 0:00:57]} Nf6 {[%emt 0:00:46]} 6. e4 {[%emt 0:05:47]} d4 {[%emt 0:01:02]} 7. a4 {[%emt 0:00:35]} Bd6 {[%emt 0:01:01]} 8. Na3 {[%emt 0:01:43]} Bg4 {[%emt 0:08:01]} 9. h3 {[%emt 0:02:10]} Be6 {[%emt 0:04:25]} 10. Ng5 {[%emt 0:03:16]} Bd7 {[%emt 0:00:48]} 11. Nc4 {[%emt 0:03:25]} Bc7 {[%emt 0:00:30]} 12. f4 {[%emt 0:01:32]} Qe7 {[%emt 0:02:54]} 13. f5 {[%emt 0:18:12]} Na5 {[%emt 0:10:14]} 14. Nxa5 {[%emt 0:02:21]} Bxa5 {[%emt 0:01:21]} 15. Nf3 {[%emt 0:01:14]} Bc6 {[%emt 0:03:49]} 16. Bg5 {[%emt 0:05:15]} Qd6 {[%emt 0:03:17]} 17. Nd2 {[%emt 0:01:41]} Bd8 {[%emt 0:12:18]} 18. Nc4 {[%emt 0:02:09]} Qc7 {[%emt 0:00:10]} 19. Qe2 {[%emt 0:05:06]} b6 {[%emt 0:10:48]} 20. c3 {[%emt 0:05:47]} dxc3 {[%emt 0:17:07]} 21. bxc3 {[%emt 0:00:12]} O-O {[%emt 0:00:30]} 22. g4 {[%emt 0:11:52]} Kh8 {[%emt 0:10:44]} 23. Be3 {[%emt 0:02:02]} Ng8 {[%emt 0:00:04]} 24. g5 {[%emt 0:02:31]} f6 {[%emt 0:00:21]} 25. h4 {[%emt 0:00:38]} Be7 {[%emt 0:00:34]} 26. Rf3 {[%emt 0:04:50]} Rad8 {[%emt 0:00:35]} 27. Rg3 {[%emt 0:03:12]} Qd7 {[%emt 0:01:20]} 28. Nb2 {[%emt 0:00:41]} b5 {[%emt 0:02:32]} 29. axb5 {[%emt 0:03:06]} Bxb5 {[%emt 0:00:03]} 30. c4 {[%emt 0:00:29]} Bc6 {[%emt 0:00:04]} 31. Bf1 {[%emt 0:02:41]} Rb8 {[%emt 0:02:21]} 32. Nd1 {[%emt 0:01:59]} Rb3 {[%emt 0:00:11]} 33. Qa2 {[%emt 0:00:36]} Rfb8 {[%emt 0:02:59]} 34. Qxa7 {[%emt 0:01:37]} Qe8 {[%emt 0:02:45]} 35. Qa2 {[%emt 0:02:12]} Ra8 {[%emt 0:00:02]} 36. Qxb3 {[%emt 0:00:07]} Rxa1 {[%emt 0:00:03]} 37. Nf2 {[%emt 0:01:05]} Qh5 {[%emt 0:00:32]} 38. Qb2 {[%emt 0:00:34]} Ra8 {[%emt 0:00:53]} 39. g6 {[%emt 0:00:29]} hxg6 {[%emt 0:00:15]} 40. Be2 {[%emt 0:00:20]} Qxh4 {[%emt 0:02:22]} 41. Rh3 {[%emt 0:00:21]} Qxh3 {[%emt 0:00:00]} 42. Nxh3 {[%emt 0:00:00]} gxf5 {[%emt 0:00:00]} 43. exf5 {[%emt 0:00:00]} Nh6 {[%emt 0:00:00]} 44. Bxh6 {[%emt 0:00:00]} gxh6 {[%emt 0:00:00]} 45. Kf2 {[%emt 0:00:00]} Bd8 {[%emt 0:00:00]} 46. Bf3 {[%emt 0:00:00]} Bxf3 {[%emt 0:00:00]} 47. Kxf3 {[%emt 0:00:00]} Ba5 {[%emt 0:00:00]} 48. Qb7 {[%emt 0:00:00]} Rd8 {[%emt 0:00:00]} 49. Nf2 {[%emt 0:00:00]} Bc3 {[%emt 0:00:00]} 50. Qe7 {[%emt 0:00:00]} Rg8 {[%emt 0:00:00]} 51. Ne4 {[%emt 0:00:00]} 1-0

[Event "Chhattisgarh Masters GM 2022"]
[Site "Chhattisgarh"]
[Date "2022.09.19"]
[Round "1.24"]
[White "Mahindrakar Indrajeet"]
[Black "Mrudul Dehankar"]
[Result "1/2-1/2"]
[ECO "C78"]
[WhiteElo "1979"]
[BlackElo "2256"]
[Annotator "NA COMBH"]
[PlyCount "113"]
[EventDate "2022.09.19"]
[EventCountry "IND"]
[SourceTitle "playchess.com"]
[Source "ChessBase"]
[SourceQuality "1"]
[TimeControl "5400+30"]

1. e4 {[%emt 0:00:47]} e5 {[%emt 0:00:23]} 2. Nf3 {[%emt 0:03:09]} Nc6 {[%emt 1:31:07]} 3. Bb5 {[%emt 0:00:09]} a6 {[%emt 0:00:00]} 4. Ba4 {[%emt 0:00:18]} Nf6 {[%emt 0:00:00]} 5. d3 {[%emt 0:01:43]} b5 {[%emt 0:00:00]} 6. Bb3 {[%emt 0:00:33]} Bc5 {[%emt 0:00:00]} 7. Nc3 {[%emt 0:05:01]} Bb7 {[%emt 0:00:00]} 8. O-O {[%emt 0:05:14]} O-O {[%emt 0:00:00]} 9. Bg5 {[%emt 0:05:40]} h6 {[%emt 0:00:00]} 10. Bh4 {[%emt 0:07:12]} g5 {[%emt 0:00:00]} 11. Nxg5 {[%emt 0:42:06]} hxg5 {[%emt 0:00:00]} 12. Bxg5 {[%emt 0:01:36]} Nd4 {[%emt 0:00:00]} 13. Kh1 {[%emt 0:01:38]} Ne6 {[%emt 0:00:00]} 14. f4 {[%emt 0:07:17]} Be3 {[%emt 0:00:00]} 15. Bxe6 {[%emt 0:09:55]} fxe6 {[%emt 0:00:00]} 16. Qe2 {[%emt 0:01:58]} Bxf4 {[%emt 0:00:00]} 17. Rxf4 {[%emt 0:01:19]} exf4 {[%emt 0:00:00]} 18. e5 {[%emt 0:00:16]} f3 {[%emt 0:04:10]} 19. gxf3 {[%emt 0:00:12]} Nh5 {[%emt 0:01:44]} 20. Bxd8 {[%emt 0:03:07]} Bxf3+ {[%emt 0:00:02]} 21. Qxf3 {[%emt 0:00:14]} Rf5 {[%emt 0:03:34]} 22. Qf4 Rxf4 {[%emt 0:00:00]} 23. Rf1 {[%emt 0:02:36]} Rf3 24. Rg1+ {[%emt 0:00:00]} Kh8 {[%emt 0:00:00]} 25. Bg5 {[%emt 0:00:10]} Raf8 {[%emt 0:00:54]} 26. Ne4 {[%emt 0:00:14]} R3f5 {[%emt 0:01:01]} 27. Rg4 {[%emt 0:00:53]} Rg8 {[%emt 0:00:30]} 28. d4 {[%emt 0:00:32]} Kh7 {[%emt 0:00:27]} 29. h4 {[%emt 0:00:38]} Rg7 {[%emt 0:00:34]} 30. Kh2 {[%emt 0:00:30]} Kg8 {[%emt 0:00:26]} 31. Rg2 {[%emt 0:00:25]} Kf7 {[%emt 0:00:26]} 32. Nc5 {[%emt 0:00:35]} Nf4 {[%emt 0:00:38]} 33. Rd2 {[%emt 0:00:24]} Rh7 {[%emt 0:00:32]} 34. Kg3 {[%emt 0:00:15]} Nd5 {[%emt 0:00:29]} 35. Nxd7 {[%emt 0:00:21]} Kg6 {[%emt 0:00:31]} 36. Nc5 {[%emt 0:00:46]} Rhf7 {[%emt 0:00:31]} 37. Nxe6 {[%emt 0:00:21]} Rf1 {[%emt 0:00:06]} 38. c3 {[%emt 0:00:45]} Ra1 {[%emt 0:00:46]} 39. Rg2 {[%emt 0:00:32]} Rff1 {[%emt 0:00:33]} 40. Nf4+ {[%emt 0:00:37]} Nxf4 {[%emt 0:00:15]} 41. Bxf4 {[%emt 0:00:05]} Kf5 {[%emt 0:00:17]} 42. Be3 {[%emt 0:00:41]} Rxa2 {[%emt 0:00:57]} 43. h5 {[%emt 0:00:00]} b4 {[%emt 0:00:00]} 44. cxb4 {[%emt 0:00:00]} Ke4 {[%emt 0:00:00]} 45. Bg5 {[%emt 0:00:00]} Kf5 {[%emt 0:00:01]} 46. Be3 {[%emt 0:00:00]} Ke4 {[%emt 0:00:14]} 47. Bg5 {[%emt 0:01:49]} Kf5 {[%emt 0:00:38]} 48. Bd8 {[%emt 0:00:17]} Rh1 {[%emt 0:01:47]} 49. Rf2+ {[%emt 0:00:54]} Ke6 {[%emt 0:00:47]} 50. Bxc7 {[%emt 0:00:56]} Rxh5 {[%emt 0:00:29]} 51. Rc2 {[%emt 0:00:37]} Ra1 {[%emt 0:00:36]} 52. Bb6 {[%emt 0:00:36]} Rg1+ {[%emt 0:00:22]} 53. Kf4 {[%emt 0:00:27]} Rh4+ {[%emt 0:00:32]} 54. Kf3 {[%emt 0:00:17]} Rh3+ {[%emt 0:00:28]} 55. Kf4 {[%emt 0:00:29]} Rh4+ {[%emt 0:00:14]} 56. Kf3 {[%emt 0:00:28]} Rh3+ {[%emt 0:00:09]} 57. Ke4 {[%emt 0:00:08]} 1/2-1/2